[Event "Titled Tuesday Blitz June 20 Early 2023"]
[White "Aloma Vidal, Robert"]
[Black "Ritvin, Stanislav"]
[WhiteFideId "2260409"]
[BlackFideId "2011751"]
[WhiteElo "2435"]
[BlackElo "2391"]
[Result "1-0"]
[Round "7"]
[TimeControl "180+2"]
[Date "2023.06.20"]
[WhiteClock "0:00:39"]
[BlackClock "0:00:46"]
[Board "116"]

1. e4 {[%clk 0:03:00]}  e5 {[%clk 0:02:59]} 2. Nf3 {[%clk 0:03:00]}  Nc6 {[%clk 0:03:00]} 3. Bc4 {[%clk 0:03:00]}  Bc5 {[%clk 0:02:58]} 4. b4 {[%clk 0:03:00]}  Bxb4 {[%clk 0:02:58]} 5. c3 {[%clk 0:03:00]}  Ba5 {[%clk 0:02:59]} 6. d4 {[%clk 0:03:00]}  d6 {[%clk 0:02:58]} 7. Qb3 {[%clk 0:02:55]}  Qd7 {[%clk 0:02:58]} 8. O-O {[%clk 0:02:45]}  Bb6 {[%clk 0:02:58]} 9. Nbd2 {[%clk 0:02:45]}  Na5 {[%clk 0:02:56]} 10. Qc2 {[%clk 0:02:44]}  Nxc4 {[%clk 0:02:56]} 11. Nxc4 {[%clk 0:02:44]}  f6 {[%clk 0:02:56]} 12. a4 {[%clk 0:02:42]}  Qf7 {[%clk 0:02:16]} 13. Qb3 {[%clk 0:02:10]}  Be6 {[%clk 0:02:16]} 14. d5 {[%clk 0:02:10]}  Bc8 {[%clk 0:02:15]} 15. Ba3 {[%clk 0:02:03]}  Qe7 {[%clk 0:01:59]} 16. Rfd1 {[%clk 0:01:46]}  Nh6 {[%clk 0:01:53]} 17. a5 {[%clk 0:01:44]}  Bc5 {[%clk 0:01:47]} 18. Bxc5 {[%clk 0:01:45]}  dxc5 {[%clk 0:01:48]} 19. d6 {[%clk 0:01:45]}  cxd6 {[%clk 0:01:42]} 20. Nxd6+ {[%clk 0:01:45]}  Kf8 {[%clk 0:01:42]} 21. Qb5 {[%clk 0:01:29]}  Bg4 {[%clk 0:01:31]} 22. Nxb7 {[%clk 0:01:19]}  g6 {[%clk 0:01:23]} 23. Nxc5 {[%clk 0:01:14]}  Kg7 {[%clk 0:01:22]} 24. h3 {[%clk 0:01:12]}  Rhb8 {[%clk 0:01:15]} 25. Qc6 {[%clk 0:01:04]}  Rc8 {[%clk 0:01:14]} 26. Qa4 {[%clk 0:00:45]}  Qxc5 {[%clk 0:01:03]} 27. hxg4 {[%clk 0:00:45]}  Nxg4 {[%clk 0:01:04]} 28. Qd7+ {[%clk 0:00:45]}  Kh8 {[%clk 0:01:00]} 29. Qxg4 {[%clk 0:00:45]}  Qxc3 {[%clk 0:01:01]} 30. Qe6 {[%clk 0:00:43]}  Rc6 {[%clk 0:00:57]} 31. Qf7 {[%clk 0:00:40]}  Rac8 {[%clk 0:00:46]} 32. Rd7 {[%clk 0:00:39]} 1-0


[Site "https://www.chess.com"]

[Event "Titled Tuesday Blitz June 20 Early 2023"]
[White "Pavlidou, Ekaterini"]
[Black "Kochiev, Ivan"]
[WhiteFideId "4213262"]
[BlackFideId "2917890"]
[WhiteElo "2126"]
[BlackElo "2287"]
[Result "1-0"]
[Round "7"]
[TimeControl "180+2"]
[Date "2023.06.20"]
[WhiteClock "0:00:43"]
[BlackClock "0:00:00"]
[Board "120"]

1. d4 {[%clk 0:03:00]}  Nf6 {[%clk 0:03:00]} 2. c4 {[%clk 0:03:01]}  e6 {[%clk 0:02:59]} 3. Nc3 {[%clk 0:03:01]}  c5 {[%clk 0:03:00]} 4. d5 {[%clk 0:03:01]}  exd5 {[%clk 0:03:01]} 5. cxd5 {[%clk 0:03:01]}  d6 {[%clk 0:03:02]} 6. h3 {[%clk 0:03:01]}  g6 {[%clk 0:03:02]} 7. Bf4 {[%clk 0:03:02]}  a6 {[%clk 0:03:01]} 8. a4 {[%clk 0:03:01]}  Qe7 {[%clk 0:03:01]} 9. e3 {[%clk 0:03:01]}  Bg7 {[%clk 0:03:01]} 10. Be2 {[%clk 0:02:58]}  O-O {[%clk 0:03:02]} 11. Nf3 {[%clk 0:02:59]}  Nbd7 {[%clk 0:02:56]} 12. O-O {[%clk 0:02:57]}  Ne8 {[%clk 0:02:55]} 13. Nd2 {[%clk 0:02:56]}  Ne5 {[%clk 0:02:50]} 14. Bh2 {[%clk 0:02:54]}  f5 {[%clk 0:02:47]} 15. f4 {[%clk 0:02:53]}  Nd3 {[%clk 0:02:34]} 16. Nc4 {[%clk 0:02:45]}  Nxb2 {[%clk 0:02:33]} 17. Qc1 {[%clk 0:02:28]}  Nxc4 {[%clk 0:02:30]} 18. Bxc4 {[%clk 0:02:28]}  Nc7 {[%clk 0:02:22]} 19. Kh1 {[%clk 0:02:26]}  Rb8 {[%clk 0:02:12]} 20. a5 {[%clk 0:02:22]}  Nb5 {[%clk 0:01:59]} 21. Nxb5 {[%clk 0:02:15]}  axb5 {[%clk 0:01:56]} 22. Bxb5 {[%clk 0:02:14]}  Bxa1 {[%clk 0:01:56]} 23. Qxa1 {[%clk 0:02:14]}  Bd7 {[%clk 0:01:46]} 24. Bc4 {[%clk 0:02:01]}  b5 {[%clk 0:01:38]} 25. axb6 {[%clk 0:01:57]}  Rxb6 {[%clk 0:01:37]} 26. Bg1 {[%clk 0:01:44]}  Rfb8 {[%clk 0:01:27]} 27. Re1 {[%clk 0:01:37]}  Bb5 {[%clk 0:01:15]} 28. Bxb5 {[%clk 0:01:35]}  Rxb5 {[%clk 0:01:14]} 29. e4 {[%clk 0:01:35]}  fxe4 {[%clk 0:01:13]} 30. f5 {[%clk 0:01:29]}  Rb2 {[%clk 0:00:47]} 31. Be3 {[%clk 0:01:24]}  gxf5 {[%clk 0:00:38]} 32. Qa6 {[%clk 0:01:12]}  Qg7 {[%clk 0:00:31]} 33. Qf1 {[%clk 0:01:12]}  Rf8 {[%clk 0:00:24]} 34. Bf4 {[%clk 0:01:10]}  Rf6 {[%clk 0:00:20]} 35. Re3 {[%clk 0:01:07]}  Rg6 {[%clk 0:00:18]} 36. g4 {[%clk 0:01:02]}  Ra2 {[%clk 0:00:10]} 37. gxf5 {[%clk 0:00:52]}  Ra1 {[%clk 0:00:08]} 38. Re1 {[%clk 0:00:52]}  Rxe1 {[%clk 0:00:04]} 39. Qxe1 {[%clk 0:00:52]}  Rf6 {[%clk 0:00:03]} 40. Qxe4 {[%clk 0:00:51]}  Qf7 {[%clk 0:00:04]} 41. Qg2+ {[%clk 0:00:49]}  Kf8 {[%clk 0:00:02]} 42. Qg3 {[%clk 0:00:47]}  Qxd5+ {[%clk 0:00:02]} 43. Kh2 {[%clk 0:00:46]}  Qxf5 {[%clk 0:00:02]} 44. Bxd6+ {[%clk 0:00:45]}  Kf7 {[%clk 0:00:00]} 45. Qb3+ {[%clk 0:00:43]} 1-0


[Site "https://www.chess.com"]

[Event "Titled Tuesday Blitz June 20 Early 2023"]
[White "Starozhilov, Leonid"]
[Black "Manukian, Artak"]
[WhiteFideId "14106752"]
[BlackFideId "13301373"]
[WhiteElo "2352"]
[BlackElo "2130"]
[Result "1-0"]
[Round "7"]
[TimeControl "180+2"]
[Date "2023.06.20"]
[WhiteClock "0:00:04"]
[BlackClock "0:00:30"]
[Board "126"]

1. e4 {[%clk 0:03:00]}  c6 {[%clk 0:02:57]} 2. d4 {[%clk 0:03:00]}  d5 {[%clk 0:02:53]} 3. e5 {[%clk 0:03:00]}  Bf5 {[%clk 0:02:53]} 4. Nf3 {[%clk 0:03:00]}  e6 {[%clk 0:02:53]} 5. Be2 {[%clk 0:03:01]}  c5 {[%clk 0:02:54]} 6. Be3 {[%clk 0:03:00]}  Qb6 {[%clk 0:02:53]} 7. Nc3 {[%clk 0:02:52]}  Qxb2 {[%clk 0:02:46]} 8. Qb1 {[%clk 0:02:44]}  Qxb1+ {[%clk 0:02:42]} 9. Rxb1 {[%clk 0:02:44]}  c4 {[%clk 0:02:42]} 10. Nb5 {[%clk 0:02:37]}  Na6 {[%clk 0:02:41]} 11. Kd2 {[%clk 0:02:35]}  Bb4+ {[%clk 0:02:35]} 12. Rxb4 {[%clk 0:02:33]}  Nxb4 {[%clk 0:02:34]} 13. Nc7+ {[%clk 0:02:34]}  Kd7 {[%clk 0:02:34]} 14. Nxa8 {[%clk 0:02:33]}  Nxc2 {[%clk 0:02:21]} 15. Rb1 {[%clk 0:02:19]}  Nxe3 {[%clk 0:02:19]} 16. Rxb7+ {[%clk 0:02:17]}  Kc8 {[%clk 0:02:18]} 17. Rc7+ {[%clk 0:02:16]}  Kb8 {[%clk 0:02:19]} 18. fxe3 {[%clk 0:02:13]}  Kxa8 {[%clk 0:02:15]} 19. Rc8+ {[%clk 0:02:06]}  Kb7 {[%clk 0:02:14]} 20. Rf8 {[%clk 0:02:06]}  h6 {[%clk 0:02:07]} 21. Rxf7+ {[%clk 0:01:54]}  Kc6 {[%clk 0:02:05]} 22. Rf8 {[%clk 0:01:44]}  g5 {[%clk 0:02:04]} 23. Bd1 {[%clk 0:01:36]}  Kd7 {[%clk 0:02:04]} 24. Ba4+ {[%clk 0:01:23]}  Ke7 {[%clk 0:02:03]} 25. Ra8 {[%clk 0:01:23]}  Kf7 {[%clk 0:02:03]} 26. Rxa7+ {[%clk 0:01:23]}  Ne7 {[%clk 0:02:03]} 27. Bb5 {[%clk 0:01:08]}  Rb8 {[%clk 0:01:59]} 28. a4 {[%clk 0:01:08]}  Kf8 {[%clk 0:01:58]} 29. h4 {[%clk 0:01:07]}  g4 {[%clk 0:01:53]} 30. Ng1 {[%clk 0:01:07]}  Be4 {[%clk 0:01:53]} 31. g3 {[%clk 0:01:06]}  Nf5 {[%clk 0:01:53]} 32. Ne2 {[%clk 0:01:04]}  Bf3 {[%clk 0:01:47]} 33. Nf4 {[%clk 0:01:04]}  Nxg3 {[%clk 0:01:47]} 34. Nxe6+ {[%clk 0:00:58]}  Kg8 {[%clk 0:01:46]} 35. Rg7+ {[%clk 0:00:46]}  Kh8 {[%clk 0:01:46]} 36. Rg6 {[%clk 0:00:45]}  Ne4+ {[%clk 0:01:45]} 37. Kc2 {[%clk 0:00:45]}  g3 {[%clk 0:01:37]} 38. Rxh6+ {[%clk 0:00:41]}  Kg8 {[%clk 0:01:36]} 39. Nf4 {[%clk 0:00:42]}  g2 {[%clk 0:01:27]} 40. Rg6+ {[%clk 0:00:33]}  Kf8 {[%clk 0:01:21]} 41. Nxg2 {[%clk 0:00:28]}  Bxg2 {[%clk 0:01:15]} 42. Rxg2 {[%clk 0:00:28]}  Kf7 {[%clk 0:01:13]} 43. Rg4 {[%clk 0:00:24]}  c3 {[%clk 0:00:57]} 44. h5 {[%clk 0:00:21]}  Rh8 {[%clk 0:00:55]} 45. Rxe4 {[%clk 0:00:16]}  dxe4 {[%clk 0:00:55]} 46. Kxc3 {[%clk 0:00:16]}  Rxh5 {[%clk 0:00:54]} 47. a5 {[%clk 0:00:12]}  Rh3 {[%clk 0:00:53]} 48. a6 {[%clk 0:00:04]}  Rxe3+ {[%clk 0:00:50]} 49. Kb4 {[%clk 0:00:05]}  Rh3 {[%clk 0:00:44]} 50. a7 {[%clk 0:00:05]}  Rh8 {[%clk 0:00:44]} 51. Bc6 {[%clk 0:00:05]}  e3 {[%clk 0:00:44]} 52. Kc3 {[%clk 0:00:05]}  e2 {[%clk 0:00:35]} 53. Kd2 {[%clk 0:00:05]}  Ke6 {[%clk 0:00:30]} 54. a8=Q {[%clk 0:00:04]} 1-0


[Site "https://www.chess.com"]

[Event "Titled Tuesday Blitz June 20 Early 2023"]
[White "Korchmar, Vasiliy"]
[Black "Balla, Tamas-Kristof"]
[WhiteFideId "24131750"]
[BlackFideId "1208497"]
[WhiteElo "2370"]
[BlackElo "2334"]
[Result "1-0"]
[Round "7"]
[TimeControl "180+2"]
[Date "2023.06.20"]
[WhiteClock "0:00:58"]
[BlackClock "0:00:39"]
[Board "127"]

1. e4 {[%clk 0:02:52]}  c5 {[%clk 0:02:58]} 2. Nf3 {[%clk 0:02:52]}  Nc6 {[%clk 0:02:59]} 3. d4 {[%clk 0:02:51]}  cxd4 {[%clk 0:03:00]} 4. Nxd4 {[%clk 0:02:52]}  e5 {[%clk 0:03:00]} 5. Nb5 {[%clk 0:02:52]}  d6 {[%clk 0:03:01]} 6. c4 {[%clk 0:02:52]}  Be7 {[%clk 0:03:01]} 7. Bd3 {[%clk 0:02:52]}  a6 {[%clk 0:03:00]} 8. N5c3 {[%clk 0:02:52]}  Bg5 {[%clk 0:03:01]} 9. O-O {[%clk 0:02:34]}  Bxc1 {[%clk 0:03:00]} 10. Qxc1 {[%clk 0:02:34]}  Nge7 {[%clk 0:03:00]} 11. Nd5 {[%clk 0:02:34]}  O-O {[%clk 0:02:58]} 12. Nbc3 {[%clk 0:02:34]}  Nd4 {[%clk 0:02:53]} 13. Qe3 {[%clk 0:02:05]}  f5 {[%clk 0:02:06]} 14. f4 {[%clk 0:02:03]}  fxe4 {[%clk 0:02:06]} 15. Bxe4 {[%clk 0:02:01]}  Nef5 {[%clk 0:02:01]} 16. Qd3 {[%clk 0:01:57]}  Be6 {[%clk 0:01:56]} 17. Rae1 {[%clk 0:01:43]}  Rc8 {[%clk 0:01:54]} 18. b3 {[%clk 0:01:39]}  h6 {[%clk 0:01:39]} 19. Rf2 {[%clk 0:01:31]}  Qh4 {[%clk 0:01:02]} 20. Ref1 {[%clk 0:01:30]}  Nc6 {[%clk 0:00:55]} 21. g3 {[%clk 0:01:18]}  Qd8 {[%clk 0:00:52]} 22. Qb1 {[%clk 0:01:07]}  Nfd4 {[%clk 0:00:51]} 23. f5 {[%clk 0:01:02]}  Bxd5 {[%clk 0:00:50]} 24. Nxd5 {[%clk 0:00:58]}  Ne7 {[%clk 0:00:44]} 25. f6 {[%clk 0:00:56]}  Nxd5 {[%clk 0:00:44]} 26. Bxd5+ {[%clk 0:00:56]}  Kh8 {[%clk 0:00:44]} 27. fxg7+ {[%clk 0:00:57]}  Kxg7 {[%clk 0:00:39]} 28. Rf7+ {[%clk 0:00:58]} 1-0


[Site "https://www.chess.com"]

[Event "Titled Tuesday Blitz June 20 Early 2023"]
[White "Carrasco Miranda, Andres"]
[Black "Arat, Ufuk Sezen"]
[WhiteFideId "3405990"]
[BlackFideId "6309089"]
[WhiteElo "2183"]
[BlackElo "2289"]
[Result "1/2-1/2"]
[Round "7"]
[TimeControl "180+2"]
[Date "2023.06.20"]
[WhiteClock "0:00:17"]
[BlackClock "0:00:37"]
[Board "129"]

1. d4 {[%clk 0:02:57]}  Nf6 {[%clk 0:03:00]} 2. c4 {[%clk 0:02:57]}  e6 {[%clk 0:03:00]} 3. g3 {[%clk 0:02:56]}  d5 {[%clk 0:02:58]} 4. Bg2 {[%clk 0:02:56]}  Be7 {[%clk 0:02:57]} 5. Nf3 {[%clk 0:02:56]}  O-O {[%clk 0:02:58]} 6. O-O {[%clk 0:02:56]}  c6 {[%clk 0:02:56]} 7. Nbd2 {[%clk 0:02:56]}  b6 {[%clk 0:02:54]} 8. Qc2 {[%clk 0:02:55]}  Bb7 {[%clk 0:02:54]} 9. e4 {[%clk 0:02:55]}  dxe4 {[%clk 0:02:52]} 10. Nxe4 {[%clk 0:02:55]}  c5 {[%clk 0:02:53]} 11. Nxf6+ {[%clk 0:02:53]}  Bxf6 {[%clk 0:02:53]} 12. dxc5 {[%clk 0:02:53]}  bxc5 {[%clk 0:02:53]} 13. Rd1 {[%clk 0:02:53]}  Qb6 {[%clk 0:02:52]} 14. Be3 {[%clk 0:02:39]}  Nc6 {[%clk 0:02:52]} 15. Rab1 {[%clk 0:02:36]}  Rfd8 {[%clk 0:02:50]} 16. Rxd8+ {[%clk 0:02:31]}  Rxd8 {[%clk 0:02:50]} 17. a3 {[%clk 0:02:31]}  e5 {[%clk 0:02:41]} 18. Ng5 {[%clk 0:02:29]}  Bxg5 {[%clk 0:02:39]} 19. Bxg5 {[%clk 0:02:30]}  f6 {[%clk 0:02:38]} 20. Be3 {[%clk 0:02:27]}  Nd4 {[%clk 0:02:38]} 21. Bxd4 {[%clk 0:02:24]}  exd4 {[%clk 0:02:33]} 22. Bxb7 {[%clk 0:02:21]}  Qxb7 {[%clk 0:02:33]} 23. b4 {[%clk 0:02:21]}  cxb4 {[%clk 0:02:29]} 24. axb4 {[%clk 0:02:21]}  d3 {[%clk 0:02:26]} 25. Qd2 {[%clk 0:02:19]}  Qe4 {[%clk 0:02:26]} 26. c5 {[%clk 0:02:14]}  Re8 {[%clk 0:02:25]} 27. Rd1 {[%clk 0:02:11]}  Rd8 {[%clk 0:02:22]} 28. Qc3 {[%clk 0:02:02]}  d2 {[%clk 0:02:15]} 29. c6 {[%clk 0:01:54]}  Rd3 {[%clk 0:02:04]} 30. Qc5 {[%clk 0:00:37]}  Qe1+ {[%clk 0:01:56]} 31. Kg2 {[%clk 0:00:37]}  Qxd1 {[%clk 0:01:53]} 32. Qc4+ {[%clk 0:00:37]}  Kf8 {[%clk 0:01:49]} 33. Qxd3 {[%clk 0:00:37]}  Qc1 {[%clk 0:01:43]} 34. c7 {[%clk 0:00:35]}  Qc6+ {[%clk 0:01:33]} 35. f3 {[%clk 0:00:25]}  Qxc7 {[%clk 0:01:31]} 36. Qxd2 {[%clk 0:00:25]}  g5 {[%clk 0:01:17]} 37. Qd3 {[%clk 0:00:22]}  Kg7 {[%clk 0:01:16]} 38. h4 {[%clk 0:00:21]}  gxh4 {[%clk 0:01:15]} 39. gxh4 {[%clk 0:00:22]}  Qb6 {[%clk 0:01:09]} 40. Qe4 {[%clk 0:00:22]}  Qd6 {[%clk 0:01:06]} 41. Kh3 {[%clk 0:00:20]}  h5 {[%clk 0:00:58]} 42. Qb7+ {[%clk 0:00:20]}  Kh6 {[%clk 0:00:57]} 43. Qxa7 {[%clk 0:00:20]}  Qf4 {[%clk 0:00:46]} 44. Qb7 {[%clk 0:00:19]}  Qf5+ {[%clk 0:00:39]} 45. Kg3 {[%clk 0:00:18]}  Qg6+ {[%clk 0:00:40]} 46. Kf2 {[%clk 0:00:17]}  Qc2+ {[%clk 0:00:39]} 47. Kg3 {[%clk 0:00:17]}  Qg6+ {[%clk 0:00:39]} 48. Kf2 {[%clk 0:00:18]}  Qc2+ {[%clk 0:00:39]} 49. Kg3 {[%clk 0:00:17]}  Qg6+ {[%clk 0:00:37]} 1/2-1/2


[Site "https://www.chess.com"]

[Event "Titled Tuesday Blitz June 20 Early 2023"]
[White "i_like_explosions"]
[Black "Belov, Alexei"]
[BlackFideId "4128206"]
[WhiteElo "2399"]
[BlackElo "2563"]
[Result "1/2-1/2"]
[Round "7"]
[TimeControl "180+2"]
[Date "2023.06.20"]
[WhiteClock "0:00:16"]
[BlackClock "0:00:17"]
[Board "130"]

1. d4 {[%clk 0:03:00]}  e6 {[%clk 0:02:57]} 2. c4 {[%clk 0:02:58]}  d5 {[%clk 0:02:57]} 3. cxd5 {[%clk 0:02:58]}  exd5 {[%clk 0:02:57]} 4. Nc3 {[%clk 0:02:58]}  c6 {[%clk 0:02:57]} 5. Nf3 {[%clk 0:02:58]}  Bf5 {[%clk 0:02:57]} 6. Bg5 {[%clk 0:02:58]}  Be7 {[%clk 0:02:56]} 7. Bxe7 {[%clk 0:02:58]}  Qxe7 {[%clk 0:02:56]} 8. e3 {[%clk 0:02:58]}  Nd7 {[%clk 0:02:56]} 9. Bd3 {[%clk 0:02:57]}  Bxd3 {[%clk 0:02:55]} 10. Qxd3 {[%clk 0:02:58]}  Ngf6 {[%clk 0:02:56]} 11. O-O {[%clk 0:02:58]}  O-O {[%clk 0:02:56]} 12. Rab1 {[%clk 0:02:57]}  a5 {[%clk 0:02:56]} 13. b3 {[%clk 0:02:54]}  Rfe8 {[%clk 0:02:55]} 14. Nd2 {[%clk 0:02:51]}  g6 {[%clk 0:02:47]} 15. h3 {[%clk 0:02:41]}  Nb6 {[%clk 0:02:39]} 16. Rfe1 {[%clk 0:02:21]}  Kg7 {[%clk 0:02:23]} 17. Nf1 {[%clk 0:02:13]}  Nc8 {[%clk 0:02:21]} 18. Ng3 {[%clk 0:02:07]}  Nd6 {[%clk 0:02:20]} 19. Na4 {[%clk 0:02:05]}  Nfe4 {[%clk 0:02:15]} 20. Nxe4 {[%clk 0:02:05]}  Nxe4 {[%clk 0:02:15]} 21. Nc3 {[%clk 0:02:03]}  f5 {[%clk 0:02:04]} 22. f3 {[%clk 0:01:48]}  Nxc3 {[%clk 0:01:57]} 23. Qxc3 {[%clk 0:01:48]}  Qb4 {[%clk 0:01:58]} 24. Qd3 {[%clk 0:01:44]}  Rad8 {[%clk 0:01:53]} 25. Rbd1 {[%clk 0:01:43]}  Re7 {[%clk 0:01:47]} 26. e4 {[%clk 0:01:36]}  dxe4 {[%clk 0:01:35]} 27. fxe4 {[%clk 0:01:37]}  Red7 {[%clk 0:01:23]} 28. exf5 {[%clk 0:01:01]}  Rxd4 {[%clk 0:01:17]} 29. Qf3 {[%clk 0:01:01]}  Rxd1 {[%clk 0:01:08]} 30. Rxd1 {[%clk 0:01:02]}  Qc5+ {[%clk 0:01:02]} 31. Kh1 {[%clk 0:01:00]}  Rxd1+ {[%clk 0:00:59]} 32. Qxd1 {[%clk 0:01:00]}  Qxf5 {[%clk 0:00:59]} 33. Qd4+ {[%clk 0:01:00]}  Kf7 {[%clk 0:00:52]} 34. Qb6 {[%clk 0:00:58]}  Qb5 {[%clk 0:00:26]} 35. Qc7+ {[%clk 0:00:53]}  Kg8 {[%clk 0:00:25]} 36. Qd8+ {[%clk 0:00:52]}  Kg7 {[%clk 0:00:25]} 37. Qe7+ {[%clk 0:00:50]}  Kh6 {[%clk 0:00:25]} 38. Qh4+ {[%clk 0:00:47]}  Qh5 {[%clk 0:00:24]} 39. Qf4+ {[%clk 0:00:45]}  Qg5 {[%clk 0:00:24]} 40. Qf8+ {[%clk 0:00:45]}  Kh5 {[%clk 0:00:21]} 41. Qf3+ {[%clk 0:00:19]}  Kh4 {[%clk 0:00:21]} 42. Qe4+ {[%clk 0:00:17]}  Kg3 {[%clk 0:00:16]} 43. Qf3+ {[%clk 0:00:15]}  Kh4 {[%clk 0:00:17]} 44. Qe4+ {[%clk 0:00:15]}  Kh5 {[%clk 0:00:17]} 45. Qf3+ {[%clk 0:00:15]}  Kh6 {[%clk 0:00:17]} 46. Qf8+ {[%clk 0:00:15]}  Kh5 {[%clk 0:00:17]} 47. Qf3+ {[%clk 0:00:16]} 1/2-1/2


[Site "https://www.chess.com"]

[Event "Titled Tuesday Blitz June 20 Early 2023"]
[White "Ziegler, Ari"]
[Black "Yelisieiev, Yevhenii"]
[WhiteFideId "1700987"]
[BlackFideId "14139642"]
[WhiteElo "2288"]
[BlackElo "2403"]
[Result "0-1"]
[Round "7"]
[TimeControl "180+2"]
[Date "2023.06.20"]
[WhiteClock "0:00:00"]
[BlackClock "0:00:19"]
[Board "132"]

1. e4 {[%clk 0:02:45]}  d6 {[%clk 0:03:00]} 2. d4 {[%clk 0:02:45]}  Nf6 {[%clk 0:03:01]} 3. Nc3 {[%clk 0:02:45]}  e5 {[%clk 0:03:01]} 4. Nf3 {[%clk 0:02:45]}  Nbd7 {[%clk 0:03:01]} 5. Bc4 {[%clk 0:02:45]}  Be7 {[%clk 0:03:02]} 6. O-O {[%clk 0:02:44]}  O-O {[%clk 0:03:02]} 7. a4 {[%clk 0:02:43]}  c6 {[%clk 0:03:03]} 8. h3 {[%clk 0:02:43]}  a5 {[%clk 0:03:03]} 9. Re1 {[%clk 0:02:42]}  Nb6 {[%clk 0:03:03]} 10. Ba2 {[%clk 0:02:40]}  Nfd7 {[%clk 0:03:02]} 11. Be3 {[%clk 0:02:36]}  exd4 {[%clk 0:03:02]} 12. Nxd4 {[%clk 0:02:36]}  Nc5 {[%clk 0:03:02]} 13. Qd2 {[%clk 0:02:28]}  Nbxa4 {[%clk 0:02:52]} 14. Nxa4 {[%clk 0:02:27]}  Nxa4 {[%clk 0:02:52]} 15. Bxf7+ {[%clk 0:02:24]}  Rxf7 {[%clk 0:02:53]} 16. Rxa4 {[%clk 0:02:24]}  Bd7 {[%clk 0:02:51]} 17. Raa1 {[%clk 0:02:23]}  a4 {[%clk 0:02:38]} 18. Rad1 {[%clk 0:02:13]}  Qa5 {[%clk 0:02:32]} 19. Qxa5 {[%clk 0:02:08]}  Rxa5 {[%clk 0:02:33]} 20. f4 {[%clk 0:01:57]}  Rf8 {[%clk 0:02:10]} 21. g4 {[%clk 0:01:54]}  h5 {[%clk 0:02:07]} 22. f5 {[%clk 0:01:54]}  hxg4 {[%clk 0:02:05]} 23. hxg4 {[%clk 0:01:54]}  a3 {[%clk 0:01:49]} 24. bxa3 {[%clk 0:01:52]}  Rxa3 {[%clk 0:01:49]} 25. Kg2 {[%clk 0:01:48]}  Rc3 {[%clk 0:01:45]} 26. Re2 {[%clk 0:01:42]}  Ra8 {[%clk 0:01:42]} 27. Bd2 {[%clk 0:01:36]}  Rc4 {[%clk 0:01:40]} 28. Bf4 {[%clk 0:01:28]}  Raa4 {[%clk 0:01:37]} 29. c3 {[%clk 0:00:37]}  c5 {[%clk 0:01:24]} 30. Ne6 {[%clk 0:00:34]}  Bxe6 {[%clk 0:01:02]} 31. fxe6 {[%clk 0:00:34]}  Rxe4 {[%clk 0:01:02]} 32. Rxe4 {[%clk 0:00:33]}  Rxe4 {[%clk 0:01:03]} 33. Bxd6 {[%clk 0:00:33]}  Rxe6 {[%clk 0:00:56]} 34. Bxe7 {[%clk 0:00:33]}  Rxe7 {[%clk 0:00:56]} 35. Kf3 {[%clk 0:00:31]}  Kf7 {[%clk 0:00:55]} 36. Rd6 {[%clk 0:00:30]}  Ke8 {[%clk 0:00:48]} 37. Kf4 {[%clk 0:00:26]}  Rd7 {[%clk 0:00:47]} 38. Rb6 {[%clk 0:00:22]}  Kd8 {[%clk 0:00:46]} 39. g5 {[%clk 0:00:20]}  Kc7 {[%clk 0:00:47]} 40. Rb3 {[%clk 0:00:17]}  Kc6 {[%clk 0:00:47]} 41. Kf5 {[%clk 0:00:17]}  Kd5 {[%clk 0:00:30]} 42. Kg6 {[%clk 0:00:07]}  Kc4 {[%clk 0:00:29]} 43. Ra3 {[%clk 0:00:06]}  b5 {[%clk 0:00:28]} 44. Kh7 {[%clk 0:00:04]}  b4 {[%clk 0:00:20]} 45. cxb4 {[%clk 0:00:04]}  cxb4 {[%clk 0:00:20]} 46. Ra8 {[%clk 0:00:04]}  Rb7 {[%clk 0:00:20]} 47. Rg8 {[%clk 0:00:03]}  b3 {[%clk 0:00:20]} 48. Rxg7 {[%clk 0:00:04]}  Rxg7+ {[%clk 0:00:18]} 49. Kxg7 {[%clk 0:00:04]}  b2 {[%clk 0:00:19]} 50. g6 {[%clk 0:00:05]}  b1=Q {[%clk 0:00:20]} 51. Kh7 {[%clk 0:00:04]}  Qh1+ {[%clk 0:00:20]} 52. Kg8 {[%clk 0:00:04]}  Qa8+ {[%clk 0:00:20]} 53. Kh7 {[%clk 0:00:03]}  Qe4 {[%clk 0:00:19]} 54. Kh8 {[%clk 0:00:02]}  Qh4+ {[%clk 0:00:19]} 55. Kg8 {[%clk 0:00:01]}  Qd8+ {[%clk 0:00:19]} 56. Kf7 {[%clk 0:00:01]}  Qd7+ {[%clk 0:00:19]} 57. Kf8 {[%clk 0:00:01]}  Qd6+ {[%clk 0:00:18]} 58. Kf7 {[%clk 0:00:00]}  Qf4+ {[%clk 0:00:19]} 0-1


[Site "https://www.chess.com"]

[Event "Titled Tuesday Blitz June 20 Early 2023"]
[White "Akylbek2021"]
[Black "Mazurkiewicz, Michal"]
[BlackFideId "1124943"]
[WhiteElo "2513"]
[BlackElo "2063"]
[Result "1/2-1/2"]
[Round "7"]
[TimeControl "180+2"]
[Date "2023.06.20"]
[WhiteClock "0:01:50"]
[BlackClock "0:00:04"]
[Board "135"]

1. e4 {[%clk 0:02:48]}  d6 {[%clk 0:02:59]} 2. d4 {[%clk 0:02:47]}  Nf6 {[%clk 0:03:00]} 3. Nc3 {[%clk 0:02:48]}  c6 {[%clk 0:03:00]} 4. f3 {[%clk 0:02:49]}  e5 {[%clk 0:03:00]} 5. Nge2 {[%clk 0:02:48]}  Be7 {[%clk 0:03:01]} 6. Be3 {[%clk 0:02:47]}  b5 {[%clk 0:03:01]} 7. Qd2 {[%clk 0:02:47]}  O-O {[%clk 0:03:01]} 8. g4 {[%clk 0:02:46]}  Qa5 {[%clk 0:02:54]} 9. g5 {[%clk 0:02:44]}  Nh5 {[%clk 0:02:50]} 10. d5 {[%clk 0:02:42]}  b4 {[%clk 0:02:46]} 11. Nd1 {[%clk 0:02:41]}  cxd5 {[%clk 0:02:46]} 12. Qxd5 {[%clk 0:02:35]}  Qxd5 {[%clk 0:02:45]} 13. exd5 {[%clk 0:02:36]}  Nd7 {[%clk 0:02:20]} 14. c4 {[%clk 0:02:36]}  bxc3 {[%clk 0:02:19]} 15. Ndxc3 {[%clk 0:02:32]}  Nb6 {[%clk 0:02:18]} 16. b3 {[%clk 0:02:29]}  Bb7 {[%clk 0:02:16]} 17. O-O-O {[%clk 0:02:28]}  Rac8 {[%clk 0:02:07]} 18. Kb2 {[%clk 0:02:28]}  Nf4 {[%clk 0:01:43]} 19. Nxf4 {[%clk 0:02:22]}  exf4 {[%clk 0:01:44]} 20. Bxf4 {[%clk 0:02:22]}  Rxc3 {[%clk 0:01:44]} 21. Kxc3 {[%clk 0:02:22]}  Nxd5+ {[%clk 0:01:44]} 22. Rxd5 {[%clk 0:02:23]}  Bxd5 {[%clk 0:01:44]} 23. Be2 {[%clk 0:02:20]}  f6 {[%clk 0:01:36]} 24. Rd1 {[%clk 0:02:15]}  fxg5 {[%clk 0:01:33]} 25. Bxd6 {[%clk 0:02:10]}  Rc8+ {[%clk 0:00:47]} 26. Bc4 {[%clk 0:02:08]}  Bxc4 {[%clk 0:00:28]} 27. bxc4 {[%clk 0:02:07]}  Rd8 {[%clk 0:00:20]} 28. c5 {[%clk 0:02:06]}  Kf7 {[%clk 0:00:20]} 29. Kc4 {[%clk 0:02:03]}  Bxd6 {[%clk 0:00:13]} 30. cxd6 {[%clk 0:02:04]}  Ke6 {[%clk 0:00:13]} 31. Kb5 {[%clk 0:01:56]}  Rxd6 {[%clk 0:00:11]} 32. Rxd6+ {[%clk 0:01:56]}  Kxd6 {[%clk 0:00:12]} 33. Ka6 {[%clk 0:01:57]}  Kc5 {[%clk 0:00:11]} 34. Kxa7 {[%clk 0:01:57]}  Kb4 {[%clk 0:00:12]} 35. Kb7 {[%clk 0:01:56]}  Ka3 {[%clk 0:00:10]} 36. Kc6 {[%clk 0:01:57]}  Kxa2 {[%clk 0:00:10]} 37. Kd5 {[%clk 0:01:58]}  Kb3 {[%clk 0:00:06]} 38. Ke6 {[%clk 0:01:52]}  Kc3 {[%clk 0:00:06]} 39. Kf7 {[%clk 0:01:51]}  Kd3 {[%clk 0:00:05]} 40. Kxg7 {[%clk 0:01:51]}  Ke3 {[%clk 0:00:04]} 41. Kxh7 {[%clk 0:01:50]}  Kxf3 {[%clk 0:00:04]} 42. Kg6 {[%clk 0:01:51]}  g4 {[%clk 0:00:03]} 43. Kg5 {[%clk 0:01:50]}  g3 {[%clk 0:00:03]} 44. hxg3 {[%clk 0:01:50]}  Kxg3 {[%clk 0:00:04]} 1/2-1/2


[Site "https://www.chess.com"]